bitfinex/quotes_ETHUSD_20251119
["timestamp","ask_amount","ask_price","bid_price","bid_amount"]
[1763517949127,0.6842,3118.5,3117.6,0.90699264]
[1763517949327,0.6842,3118.5,3117.7,1.21362248]
[1763517949328,0.1941,3118.5,3117.7,1.21362248]
[1763517949656,0.1941,3118.5,3117.7,0.71542248]
[1763517949862,0.6883,3118.5,3117.7,0.71542248]
[1763517950228,0.4942,3118.4,3117.7,0.71542248]
[1763517951570,0.5714,3117.8,3117.7,0.71542248]
[1763517951777,0.5714,3117.8,3117.3,0.5743]
[1763517951944,1.0644,3117.8,3117.3,0.5743]
[1763517952146,0.1941,3118.5,3117.7,0.475]
[1763517952328,0.1941,3118.5,3117.8,0.03207389]
[1763517952535,0.1941,3118.5,3117.7,0.475]
[1763517952749,0.1941,3118.5,3117.8,0.03207389]
[1763517953678,0.4942,3118.8,3117.8,0.03207389]
[1763517953972,0.1941,3119.4,3118.7,0.6203]
[1763517954138,0.1941,3119.4,3118.8,0.03206361]
[1763517954651,0.1941,3119.7,3118.8,0.93905625]
[1763517954834,0.1941,3119.7,3118.9,0.73315884]
[1763517955036,0.6883,3119.7,3118.9,1.22735884]
[1763517955464,0.1941,3119.7,3118.9,1.22735884]
[1763517955646,0.6744,3120.1,3119.0,0.53026155]
[1763517955836,0.6744,3120.1,3119.1,0.17576204]
[1763517956039,0.6744,3120.1,3119.2,0.0320595]
[1763517956237,0.6744,3120.1,3119.1,0.17576204]
[1763517956238,0.6744,3120.1,3119.1,0.67396204]
[1763517956542,0.4942,3120.0,3119.1,0.17576204]
[1763517957885,0.4942,3120.0,3118.9,0.4942]
[1763517958397,0.4942,3120.0,3118.9,0.9924]
[1763517958600,0.4962,3120.0,3118.9,0.9924]
[1763517960810,0.002,3120.0,3119.3,0.90699264]
[1763517961103,0.002,3120.0,3119.4,0.74747992]
[1763517961709,0.4998,3119.5,3119.4,0.71542248]
[1763517961887,0.4998,3119.5,3118.9,0.4942]
[1763517962201,0.358,3119.0,3118.9,0.4942]
[1763517962569,0.358,3119.0,3117.3,2.30680845]
[1763517962570,0.358,3119.0,3118.0,6.24723219]
[1763517962809,0.358,3119.0,3118.1,1.58153586]
[1763517962810,0.3595,3119.0,3118.1,1.58153586]
[1763517963008,0.1941,3119.9,3118.9,0.475]
[1763517963174,0.6883,3119.9,3119.0,0.50706155]
[1763517963693,0.6883,3119.9,3119.3,0.90699264]
[1763517963895,0.6883,3119.9,3119.4,0.74747992]
[1763517964477,0.002,3120.0,3119.4,0.74747992]
[1763517964891,0.3636,3119.5,3119.4,0.71542248]
[1763517965429,0.002,3120.0,3119.4,0.71542248]
[1763517966008,0.002,3120.0,3119.4,1.21362248]
[1763517966321,0.002,3120.0,3119.5,0.28089151]
[1763517966618,0.4609,3120.0,3119.5,0.28089151]
[1763517967024,0.002,3120.0,3119.5,0.28089151]
[1763517967914,0.002,3120.0,3119.5,0.75299151]
[1763517968824,0.002,3120.0,3119.5,0.28089151]
[1763517969282,0.002,3120.0,3119.5,0.75299151]
[1763517969486,0.002,3120.0,3119.9,0.4612]
[1763517969735,0.002,3120.0,3119.9,1.36819264]
[1763517970028,0.002,3120.0,3119.9,2.63388742]
[1763517971085,0.4823,3120.0,3119.5,1.18788415]
[1763517971400,0.3862,3120.0,3119.5,0.90699264]
[1763517971587,0.002,3120.0,3119.5,0.90699264]
[1763517971786,0.002,3120.0,3119.9,0.4612]
[1763517972603,0.002,3120.0,3119.6,0.50415539]
[1763517973039,0.002,3120.0,3119.6,0.4721]
[1763517973212,0.002,3120.0,3119.7,0.50331964]
[1763517973415,0.002,3120.0,3119.8,0.03205333]
[1763517973606,0.002,3120.0,3119.6,0.77882708]
[1763517973806,0.002,3120.0,3119.6,1.28214672]
[1763517974134,0.002,3120.0,3119.6,1.75424672]
[1763517974712,0.002,3120.0,3119.6,1.28214672]
[1763517974913,0.1872,3119.9,3119.7,0.21891394]
[1763517975236,0.4054,3119.7,3119.6,0.50331964]
[1763517975436,0.4054,3119.7,3118.9,0.90699264]
[1763517975648,0.4583,3119.8,3119.3,0.4609]
[1763517976005,0.4059,3119.4,3118.9,0.90699264]
[1763517976224,0.4059,3119.4,3119.0,1.19368248]
[1763517976935,0.4583,3119.8,3119.0,1.19368248]
[1763517977136,0.002,3120.0,3119.4,6.24723219]
[1763517977337,0.002,3120.0,3119.5,0.93904905]
[1763517977560,0.002,3120.0,3119.6,0.71862812]
[1763517977761,0.002,3120.0,3119.7,0.4721]
[1763517977906,0.002,3120.0,3119.7,0.50415436]
[1763517978258,0.002,3120.0,3119.7,0.4721]
[1763517978462,0.002,3120.0,3119.9,0.4612]
[1763517978626,0.002,3120.0,3119.9,0.4932523]
[1763517979320,0.002,3120.0,3119.9,0.0320523]
[1763517979540,0.8657,3120.0,3119.4,0.63414758]
[1763517979790,0.1872,3119.9,3119.1,0.90699264]
[1763517980046,0.4059,3119.5,3119.2,0.0320595]
[1763517980338,0.645,3119.9,3119.1,0.93905317]
[1763517980541,0.4589,3119.8,3119.2,0.83799678]
[1763517981244,0.4589,3119.8,3119.3,0.03205847]
[1763517981454,0.1872,3119.9,3119.2,0.87005628]
[1763517981752,0.4951,3119.7,3119.2,0.83799678]
[1763517981955,0.4951,3119.7,3119.3,0.17449894]
[1763517982326,0.3695,3119.4,3119.0,0.4583]
[1763517982526,0.3695,3119.1,3118.6,0.001]
[1763517982819,0.3695,3119.1,3118.7,0.4951]
[1763517983047,0.1872,3119.9,3118.7,0.4951]
[1763517983048,0.6823,3119.9,3119.0,0.4869]
[1763517983346,0.6823,3119.9,3119.1,0.93905317]
[1763517983526,0.1872,3119.9,3119.2,0.76731854]
[1763517983712,0.4951,3119.8,3119.3,0.03205847]
[1763517984341,0.4951,3119.8,3119.2,0.76731854]
[1763517985416,0.4951,3119.8,3119.3,0.03205847]
[1763517985714,0.1872,3119.9,3119.3,0.03205847]
[1763517985923,0.1872,3119.9,3119.2,1.26241854]
[1763517986157,0.6823,3119.9,3119.3,0.23250112]
[1763517986321,0.6823,3119.9,3119.4,0.03205744]
[1763517986522,0.1872,3119.9,3119.4,0.03205744]
[1763517986735,0.4951,3119.9,3119.4,0.03205744]
[1763517986929,0.3751,3119.5,3119.2,0.4951]
[1763517987251,0.3751,3119.5,3118.9,0.90699264]
[1763517987450,0.3751,3119.5,3119.0,0.76317248]
[1763517987746,0.869,3119.5,3119.0,0.76317248]
[1763517987923,0.869,3119.5,3119.0,0.4951]
[1763517989224,0.4939,3119.9,3119.0,0.9726]
[1763517989752,0.4939,3119.9,3119.1,0.03206053]
[1763517989951,0.002,3120.0,3119.1,0.50956053]
[1763517990250,0.002,3120.0,3119.1,0.4775]
[1763517990448,0.3751,3119.2,3119.1,0.18795926]
[1763517990637,0.3751,3119.2,3118.8,0.90699264]
[1763517990836,0.4939,3119.4,3118.9,0.4951]
[1763517991269,0.3763,3119.0,3118.8,0.90699264]
[1763517991492,0.4939,3119.4,3118.9,0.71542248]
[1763517992689,0.002,3120.0,3119.3,0.4869]
[1763517992844,0.002,3120.0,3119.0,0.4775]
[1763517992845,0.4951,3119.9,3119.0,0.4775]
[1763517993150,0.4951,3119.9,3118.9,0.71542248]
[1763517993551,0.3751,3119.0,3118.9,0.71542248]
[1763517993959,0.4951,3119.9,3118.9,1.20232248]
[1763517994158,0.002,3120.0,3119.0,0.03206155]
[1763517994374,0.4971,3120.0,3119.0,0.50956155]
[1763517994661,0.4971,3120.0,3119.0,0.4775]
[1763517994864,0.4971,3120.0,3118.9,0.74748506]
[1763517994865,0.4971,3120.0,3118.9,0.71542248]
[1763517995071,0.4971,3120.0,3119.0,0.21163151]
[1763517996770,0.4971,3120.0,3119.1,0.50334936]
[1763517997340,0.3751,3119.2,3119.1,0.50334936]
[1763517997544,0.3751,3119.2,3119.0,0.21163151]
[1763517997942,0.4786,3119.5,3119.0,0.21163151]
[1763517998386,0.4786,3119.9,3119.1,0.4824]
[1763517998544,0.002,3120.0,3119.4,0.90699264]
[1763517998745,0.002,3120.0,3119.5,0.74747889]
[1763517999085,0.002,3120.0,3119.5,1.22987889]
[1763517999644,0.4806,3120.0,3119.5,0.71542248]
[1763518000685,0.002,3120.0,3119.5,1.19782248]
[1763518000978,0.002,3120.0,3119.6,0.03205539]
[1763518001182,0.002,3120.0,3119.7,0.17331866]
[1763518001481,0.002,3120.0,3119.9,0.4663]
[1763518001684,0.002,3120.0,3119.8,0.03205333]
[1763518001888,0.4772,3119.9,3119.7,0.17331866]
[1763518002384,0.002,3120.0,3119.8,0.4663]
[1763518002563,0.002,3120.0,3119.9,0.4663]
[1763518002974,0.002,3120.0,3119.9,8.13497713]
[1763518003174,0.002,3120.0,3119.9,8.93375441]
[1763518006880,0.3695,3120.7,3120.6,0.70102402]
[1763518011994,0.1989,3120.9,3120.6,0.70102402]
[1763518012342,0.1989,3120.9,3120.6,1.17962402]
[1763518012483,0.1989,3120.9,3120.7,0.21186628]
[1763518012917,0.3695,3120.8,3120.7,0.21186628]
[1763518013122,0.847,3120.8,3120.6,0.4786]
[1763518013348,0.3706,3120.7,3120.6,0.4786]
[1763518013498,0.8471,3120.7,3119.9,1.48797008]
[1763518013706,0.3695,3120.0,3119.4,6.10324754]
[1763518013918,0.3695,3120.0,3119.4,6.71357229]
[1763518013919,0.6764,3119.9,3119.4,6.71357229]
[1763518014231,0.3706,3119.5,3119.4,6.71357229]
[1763518014385,0.3706,3119.5,3119.4,7.35831575]
[1763518014585,0.3706,3119.5,3119.4,8.03471575]
[1763518014830,0.3706,3119.5,3119.4,8.94170839]
[1763518015001,0.8471,3119.5,3119.4,8.94170839]
[1763518015333,0.8471,3119.5,3119.4,0.6764]
[1763518016227,0.8471,3119.5,3118.8,6.10324754]
[1763518016513,0.4765,3119.4,3118.9,1.75409264]
[1763518016921,0.3716,3119.0,3118.9,1.75409264]
[1763518017124,0.3716,3119.0,3118.9,2.53982666]
[1763518017503,0.847,3119.0,3118.9,2.53982666]
[1763518018515,0.847,3119.0,3118.9,0.8471]
[1763518018822,0.847,3119.0,3118.6,0.001]
[1763518019023,0.36,3118.7,3118.6,0.001]
[1763518020942,0.1989,3118.9,3118.6,0.90799264]
[1763518021237,0.4786,3119.4,3118.7,0.82109533]
[1763518021401,0.4786,3119.4,3118.8,0.4663]
[1763518021806,0.4786,3119.4,3118.7,0.78903069]
[1763518022328,0.36,3118.8,3118.7,0.78903069]
[1763518022908,0.1989,3119.9,3118.7,1.25533069]
[1763518023137,0.4786,3119.4,3118.8,0.21633233]
[1763518023520,0.36,3118.9,3118.8,0.21633233]
[1763518024006,0.36,3118.9,3118.8,0.69493233]
[1763518024234,0.1989,3119.9,3118.8,1.16123233]
[1763518024545,0.4786,3119.8,3119.1,0.90699264]
[1763518024714,0.4786,3119.8,3119.2,0.70102402]
[1763518025123,0.4786,3119.8,3119.3,0.4786]
[1763518025664,0.4786,3119.8,3119.3,0.51065847]
[1763518026171,0.4786,3119.8,3119.3,0.4786]
[1763518026940,0.1989,3119.9,3119.3,0.4786]
[1763518029343,0.002,3120.7,3119.8,0.4998]
[1763518029543,0.002,3120.7,3120.1,0.90699264]
[1763518029743,0.002,3120.7,3120.2,0.70102402]
[1763518030062,0.4556,3120.7,3120.2,0.70102402]
[1763518030254,0.4556,3120.7,3120.3,0.95689575]
[1763518030846,0.3894,3120.4,3120.3,0.95689575]
[1763518031036,0.8424,3120.4,3119.2,0.90699264]
[1763518031233,0.8424,3120.4,3119.3,1.22254977]
[1763518031456,0.453,3120.3,3119.3,1.22254977]
[1763518032443,0.002,3120.0,3119.3,1.22254977]
[1763518032649,0.002,3120.0,3119.4,0.21295424]
[1763518032884,0.6478,3119.9,3119.4,0.21295424]
[1763518033082,0.3894,3119.5,3119.4,0.21295424]
[1763518034150,0.8424,3119.5,3119.3,0.50329575]
[1763518034345,0.39,3119.4,3119.1,0.001]
[1763518034550,0.3894,3119.2,3119.1,0.001]
[1763518034944,0.8424,3119.2,3119.1,0.001]
[1763518037875,1.247904,3119.2,3119.1,0.001]
[1763518040314,0.8424,3119.2,3119.1,0.001]
[1763518040523,0.3894,3119.2,3119.1,0.001]
[1763518041026,0.8424,3119.2,3119.1,0.001]
[1763518041306,0.3894,3119.2,3119.1,0.001]
[1763518042020,0.453,3119.5,3119.1,0.001]
[1763518042174,0.1942,3119.9,3119.1,0.001]
[1763518042378,0.1942,3119.9,3119.1,0.454]
[1763518042577,0.4916,3119.8,3119.1,0.454]
[1763518043387,0.3518,3119.2,3119.1,0.454]
[1763518045377,0.1942,3119.9,3119.1,1.624]
[1763518045719,0.1942,3119.9,3119.3,0.4845]
[1763518049639,0.4693,3119.4,3119.2,3.86]
[1763518049819,0.40606172,3119.8,3119.2,4.76699264]
[1763518049820,0.8434,3119.3,3119.2,4.76699264]
[1763518049994,0.3518,3119.3,3119.2,4.76699264]
[1763518050340,0.4902,3119.6,3119.2,4.76699264]
[1763518050706,0.4902,3119.6,3119.2,3.86]
[1763518051097,0.3532,3119.3,3119.2,3.86]
[1763518051500,0.8421,3119.3,3119.2,3.86]
[1763518052532,0.8421,3119.3,3119.1,0.454]
[1763518052714,0.4916,3119.3,3119.1,0.001]
[1763518053031,0.3518,3119.2,3119.1,0.001]
[1763518054031,0.4916,3119.8,3119.1,0.4855]
[1763518054332,0.1942,3119.9,3119.1,0.4855]
[1763518054333,0.1942,3119.9,3119.1,1.1689]
[1763518054533,0.1942,3119.9,3119.2,0.20768926]
[1763518054704,0.1942,3119.9,3119.1,3.861]
[1763518054705,0.6858,3119.9,3119.1,3.861]
[1763518054901,0.03216172,3119.8,3119.1,3.861]
[1763518055114,0.52376172,3119.8,3119.1,3.861]
[1763518055315,0.4916,3119.8,3119.1,3.861]
[1763518055724,0.3518,3119.2,3119.1,4.76799264]
[1763518055948,0.3518,3119.2,3119.1,0.90799264]
[1763518057855,0.3518,3119.2,3119.1,0.85366299]
[1763518058653,0.8105,3119.2,3119.1,0.85366299]
[1763518059155,0.3518,3119.2,3119.1,0.85366299]
[1763518060418,0.405504,3119.8,3119.1,1.34336299]
[1763518060851,0.4587,3119.7,3119.1,1.34336299]
[1763518061057,0.4587,3119.7,3119.2,0.0320595]
[1763518061559,0.1942,3119.9,3119.2,0.0320595]
[1763518061768,0.6529,3119.9,3119.1,4.90356299]
[1763518062056,0.197,3119.9,3119.2,0.4813]
[1763518062262,0.197,3119.9,3119.1,4.71366299]
[1763518062263,0.4587,3119.8,3119.1,4.71366299]
[1763518062452,0.49086172,3119.8,3119.2,0.6529]
[1763518063396,0.4587,3119.8,3119.2,0.6529]
[1763518063604,0.002,3120.0,3119.2,2.16342894]
[1763518063768,0.197,3119.9,3119.2,6.02342894]
[1763518063968,0.197,3119.9,3119.3,3.86]
[1763518064169,0.6557,3119.9,3119.4,0.90699264]
[1763518064358,0.03216172,3119.8,3119.4,0.90699264]
[1763518064563,0.3816,3119.5,3119.4,0.90699264]
[1763518065071,0.4579,3119.8,3119.4,0.90699264]
[1763518065663,0.002,3120.0,3119.4,1.99063553]
[1763518065874,0.002,3120.0,3119.4,1.50933553]
[1763518066089,0.002,3120.0,3119.5,0.4579]
[1763518066460,0.4587,3119.9,3119.5,0.4579]
[1763518067076,0.6557,3119.9,3119.5,0.4579]
[1763518067889,0.002,3120.0,3119.5,0.4579]
[1763518068261,0.1866,3119.6,3119.5,0.4579]
[1763518068462,0.1866,3119.6,3119.4,0.90699264]
[1763518068768,0.1969,3119.5,3119.4,0.90699264]
[1763518069091,0.1969,3119.5,3119.3,0.4607]
[1763518069260,0.6557,3119.9,3119.3,0.4607]
[1763518070459,0.002,3120.0,3119.4,0.4813]
[1763518071090,0.002,3120.0,3119.5,0.4813]
[1763518072197,0.002,3120.0,3119.4,0.4813]
[1763518072990,0.4732,3119.5,3119.2,0.4813]
[1763518074588,0.3672,3119.8,3119.2,0.4813]
[1763518074792,0.3672,3119.8,3119.2,0.9626]
[1763518074983,0.3672,3119.8,3119.4,0.90699264]
[1763518075373,0.4722,3119.5,3119.4,0.90699264]
[1763518075581,0.4722,3119.5,3119.0,0.001]
[1763518075763,0.4587,3119.7,3119.0,0.001]
[1763518076181,0.4587,3119.7,3119.1,0.1865]
[1763518076976,0.4587,3119.7,3119.0,0.001]
[1763518080418,0.4587,3119.7,3119.1,0.1865]
[1763518080595,0.197,3119.9,3119.1,0.6678]
[1763518080999,0.197,3119.9,3119.1,1.3356]
[1763518081224,0.002,3120.0,3119.8,0.4897]
[1763518081389,0.002,3120.0,3119.9,0.4897]
[1763518082105,0.002,3120.0,3119.9,0.971]
[1763518083207,0.002,3120.0,3119.9,0.4897]
[1763518083421,0.3836,3120.0,3119.2,1.38829264]
[1763518083601,0.22916172,3119.9,3118.8,0.4813]
[1763518083803,0.22916172,3119.9,3119.1,0.4897]
[1763518084013,0.4587,3119.8,3118.7,0.001]
[1763518084208,0.4587,3119.8,3118.9,0.4897]
[1763518085419,0.197,3119.9,3119.1,0.1865]
[1763518085812,0.197,3119.9,3119.2,0.4813]
[1763518086119,0.4587,3119.8,3119.0,0.001]
[1763518086327,0.3816,3119.1,3119.0,0.001]
[1763518086525,0.49086172,3119.8,3119.0,0.001]
[1763518086731,0.4539,3119.7,3119.0,0.001]
[1763518091191,0.3863,3119.1,3119.0,0.001]
[1763518092943,0.4532,3119.4,3119.0,0.001]
[1763518094343,0.387,3119.1,3119.0,0.001]
[1763518094954,0.8396,3119.1,3119.0,0.001]
[1763518098549,1.245104,3119.1,3119.0,0.001]
[1763518099127,0.387,3119.1,3119.0,0.001]
[1763518099333,0.8396,3119.1,3119.0,0.001]
[1763518101276,0.387,3119.1,3119.0,0.001]
[1763518101971,0.8379,3119.1,3119.0,0.001]
[1763518102556,1.243404,3119.1,3119.0,0.001]
[1763518103174,0.8379,3119.1,3119.0,0.001]
[1763518104374,1.243404,3119.1,3119.0,0.001]
[1763518106479,0.387,3119.1,3119.0,0.001]
[1763518107579,0.389,3119.1,3119.0,0.001]
[1763518108558,0.8399,3119.1,3119.0,0.001]
[1763518110093,0.002,3119.1,3119.0,0.001]
[1763518110393,0.002,3119.1,3119.0,0.4907]
[1763518110894,0.002,3119.1,3119.0,0.9711]
[1763518113872,0.002,3119.1,3119.0,1.1332]
[1763518114783,0.002,3119.5,3119.0,1.1332]
[1763518114998,0.002,3119.5,3119.4,0.6709]
[1763518115421,0.002,3119.5,3119.4,1.1513]
[1763518119720,0.4596,3120.5,3119.8,0.472]
[1763518120419,0.4596,3120.3,3119.6,0.4763]
[1763518120930,0.4596,3120.3,3119.1,0.1972]
[1763518120931,0.3798,3119.7,3119.1,0.1972]
[1763518121136,0.3798,3119.7,3119.2,3.86]
[1763518121288,0.6569,3119.6,3119.4,0.4596]
[1763518121490,0.3804,3119.5,3119.0,0.001]
[1763518121825,0.4596,3119.5,3119.0,0.001]
[1763518122918,0.1973,3119.6,3119.0,0.4773]
[1763518123118,0.1973,3119.9,3119.5,0.472]
[1763518123912,0.3804,3119.6,3119.0,0.001]
[1763518124840,0.3804,3119.6,3119.1,0.1972]
[1763518125206,0.3804,3119.6,3119.2,0.4763]
[1763518125442,0.6569,3119.9,3119.2,0.4763]
[1763518125613,0.002,3119.5,3119.2,0.4763]
[1763518126214,0.4835,3119.3,3119.0,0.6579]
[1763518126455,0.3567,3119.4,3119.0,0.001]
[1763518126606,0.002,3119.5,3119.0,0.001]
[1763518129112,0.002,3119.5,3119.0,0.4773]
[1763518129318,0.002,3119.5,3119.0,0.66407926]
[1763518130242,0.002,3119.5,3119.1,0.1972]
[1763518130551,0.002,3119.5,3119.4,0.472]
[1763518130919,0.002,3119.5,3119.4,0.9483]
[1763518131763,0.002,3119.9,3119.4,0.9483]
[1763518131961,0.002,3119.9,3119.8,0.472]
[1763518132261,0.002,3119.9,3119.5,0.18552926]
[1763518132859,0.002,3119.9,3119.6,0.4616]
[1763518133562,0.002,3119.9,3119.8,0.472]
[1763518134149,0.002,3119.9,3119.6,0.9379]
[1763518134656,0.002,3119.9,3119.6,0.4616]
[1763518134867,0.002,3119.9,3119.3,0.90699264]
[1763518135032,0.002,3119.9,3119.4,0.405504]
[1763518135925,0.002,3119.9,3119.4,0.881804]
[1763518136477,0.002,3119.9,3119.4,0.4763]
[1763518136822,0.002,3119.9,3119.5,0.4596]
[1763518139835,0.002,3119.9,3119.6,0.4763]
[1763518140035,0.002,3119.9,3119.8,0.472]
[1763518141031,0.002,3119.9,3119.7,0.4596]
[1763518141240,0.4835,3119.8,3119.5,0.63909508]
[1763518141441,0.4835,3119.8,3119.1,1.10419264]
[1763518141652,0.4835,3119.8,3119.2,0.69711741]
[1763518141836,0.4835,3119.8,3119.1,1.10419264]
[1763518142159,0.4835,3119.8,3119.4,0.405504]
[1763518143032,0.4855,3119.8,3119.4,0.881804]
[1763518143761,0.4855,3119.8,3119.4,0.405504]
[1763518144777,0.4855,3119.8,3119.7,4.53393637]
[1763518144944,0.4616,3119.8,3119.7,5.44092901]
[1763518146334,0.4855,3119.8,3119.7,5.44092901]
[1763518146781,0.4855,3119.8,3119.6,4.53393637]
[1763518146938,0.483,3119.6,3119.5,4.53393637]
[1763518147138,0.483,3119.6,3119.5,5.44092901]
[1763518148283,0.483,3119.6,3119.5,0.90699264]
[1763518148637,0.483,3119.6,3119.3,5.01693637]
[1763518148842,0.483,3119.4,3119.1,0.6437183]
[1763518149056,0.483,3119.2,3119.1,0.90699264]
[1763518149260,0.483,3119.2,3119.0,0.001]
[1763518149462,0.405504,3119.4,3119.0,0.001]
[1763518149680,0.483,3119.1,3119.0,0.001]
[1763518151197,0.69551476,3119.8,3119.0,0.4822]
[1763518151489,0.405504,3119.6,3119.3,4.53393637]
[1763518151790,0.4607,3119.5,3119.3,4.53393637]
[1763518151992,0.76150636,3119.5,3119.3,4.53393637]
[1763518152354,0.30080636,3119.5,3119.3,4.53393637]
[1763518152687,0.002,3119.8,3119.3,4.53393637]
[1763518152688,0.407504,3119.8,3119.3,4.53393637]
[1763518153050,0.407504,3119.8,3119.4,0.90699264]
[1763518153051,0.30280636,3119.8,3119.4,0.90699264]
[1763518153255,0.002,3119.8,3119.4,0.90699264]
[1763518153983,0.483,3119.5,3119.4,0.90699264]
[1763518154553,0.483,3119.5,3119.3,4.53393637]
[1763518154793,0.483,3119.4,3119.3,4.53393637]
[1763518155952,0.002,3119.8,3119.3,4.53393637]
[1763518156151,0.4627,3119.8,3119.3,4.53393637]
[1763518157201,0.4627,3119.8,3119.4,0.90699264]
[1763518158499,0.4627,3119.8,3119.3,4.53393637]
[1763518160300,0.4627,3119.8,3119.3,4.53493637]
[1763518161871,0.002,3119.8,3119.6,4.53393637]
[1763518162710,0.002,3119.8,3119.7,0.4525]
[1763518162881,0.002,3119.8,3119.7,0.9236]
[1763518163081,0.002,3119.8,3119.7,0.4525]
[1763518163290,0.002,3119.8,3119.7,0.9236]
[1763518163489,0.002,3119.8,3119.7,1.052163]
[1763518163672,0.002,3119.8,3119.7,1.66210906]
[1763518165197,0.002,3119.8,3119.7,1.19100906]
[1763518165406,0.002,3119.8,3119.7,1.66210906]
[1763518170108,0.002,3119.8,3119.7,1.19100906]
[1763518170408,0.0842,3119.8,3119.7,0.128563]
[1763518170575,0.002,3119.8,3119.7,0.128563]
[1763518170775,0.002,3119.8,3119.7,0.581063]
[1763518171185,0.002,3119.8,3119.7,1.052163]
[1763518171385,0.002,3119.8,3119.7,1.99677294]
[1763518172530,0.0842,3119.8,3119.7,0.128563]
[1763518174080,0.002,3119.8,3119.7,0.128563]
[1763518174280,0.002,3119.8,3119.7,0.581063]
[1763518175208,0.002,3119.8,3119.7,1.052163]
[1763518177722,0.002,3119.8,3119.7,1.99121]
[1763518177887,0.002,3119.9,3119.7,7.31106391]
[1763518178087,0.002,3119.9,3119.8,0.9865]
[1763518178621,0.002,3119.9,3119.8,2.39679739]
[1763518179427,0.002,3119.9,3119.8,2.42885072]
[1763518180633,0.002,3119.9,3119.8,2.39679739]
[1763518180806,0.002,3119.9,3119.8,4.07845523]
[1763518183230,0.002,3119.9,3119.8,7.93845523]
[1763518186127,0.002,3119.9,3119.8,4.07845523]
[1763518187422,0.002,3120.2,3119.8,4.07845523]
[1763518187723,0.50324268,3121.8,3120.4,0.5]
[1763518187927,0.1855,3122.6,3121.1,0.90699264]
[1763518188247,0.4501,3122.5,3121.5,0.90699264]
[1763518188457,0.03216172,3122.4,3121.9,4.53393637]
[1763518188615,0.4606,3122.0,3121.7,0.90699264]
[1763518188822,0.0989,3121.8,3121.6,0.90699264]
[1763518189402,0.0989,3121.8,3121.7,0.4501]
[1763518190304,0.4501,3122.5,3121.7,2.03542904]
[1763518190608,0.4501,3122.5,3121.9,4.6311978]
[1763518191229,0.4501,3122.5,3122.0,0.50298548]
[1763518192139,0.4606,3122.1,3122.0,0.50298548]
[1763518192806,0.5491,3122.1,3122.0,0.50298548]
[1763518193248,0.4606,3122.1,3122.0,0.50298548]
[1763518194151,0.5491,3122.1,3122.0,0.50298548]
[1763518194666,0.5491,3122.1,3120.1,2.4713842]
[1763518194667,0.405504,3122.0,3121.3,4.6311978]
[1763518194830,0.4501,3122.0,3121.7,0.5491]
[1763518195032,0.1664,3121.9,3121.7,0.5491]
[1763518195221,0.0989,3121.8,3121.7,0.5491]
[1763518195617,0.1664,3121.9,3121.7,0.5491]
[1763518195925,0.405504,3122.5,3121.7,5.1802978]
[1763518195926,0.0989,3121.8,3121.7,5.1802978]
[1763518196443,0.0989,3121.8,3121.7,0.5491]
[1763518199030,0.5462,3121.8,3121.7,0.5491]
[1763518199629,0.5462,3121.8,3121.5,0.001]
[1763518199831,0.1024,3121.6,3121.5,0.001]
[1763518200472,0.1657,3121.9,3121.5,0.9483]
[1763518201164,0.4501,3122.4,3121.6,0.4865]
[1763518201385,0.407504,3122.5,3121.6,0.4865]
[1763518201531,0.407504,3122.5,3121.5,0.4483]
[1763518201532,0.2646,3121.7,3121.5,0.4483]
[1763518201741,0.1657,3121.7,3121.5,0.4483]
[1763518201942,0.0996,3121.6,3121.5,0.4483]
[1763518202367,0.5462,3121.6,3121.5,0.4483]
[1763518202976,0.0996,3121.6,3121.5,0.4483]
[1763518205419,0.407504,3122.5,3121.5,1.4348]
[1763518205420,0.405504,3122.2,3121.5,1.4348]
[1763518205548,0.405504,3122.2,3121.5,0.9483]
[1763518205874,0.405504,3122.1,3121.5,0.9483]
[1763518206466,0.002,3122.5,3121.5,0.4483]
[1763518206467,0.0526,3121.6,3121.5,0.4483]
[1763518207385,0.1653,3121.8,3121.5,0.4483]
[1763518207586,0.904404,3122.5,3121.5,0.9419]
[1763518208089,0.4969,3122.4,3121.5,0.9419]
[1763518208287,0.405504,3122.3,3121.5,1.3961]
[1763518208872,0.405504,3122.3,3121.6,4.6311978]
[1763518209070,0.002,3122.5,3121.6,5.68812758]
[1763518209071,0.407504,3122.5,3121.6,5.68812758]
[1763518209268,0.002,3122.5,3121.7,1.36119264]
[1763518209729,0.002,3122.5,3121.7,0.90699264]
[1763518209730,0.0526,3121.8,3121.7,0.90699264]
[1763518209878,0.405504,3121.7,3121.5,0.4483]
[1763518210715,0.405504,3121.9,3121.6,0.4936]
[1763518210874,0.002,3122.5,3121.8,0.90699264]
[1763518211212,0.002,3122.5,3122.4,0.6935]
[1763518211408,0.002,3122.5,3122.4,1.1477]
[1763518211793,0.002,3122.5,3122.4,1.65075222]
[1763518212508,0.002,3122.5,3122.4,3.18593986]
[1763518212954,0.50494204,3122.5,3122.4,3.18593986]
[1763518213275,0.002,3122.5,3122.4,3.18593986]
[1763518214108,0.002,3122.5,3122.4,3.82127451]
[1763518214700,0.002,3122.5,3122.4,3.18593986]
[1763518215794,0.0546,3122.5,3122.4,0.50305222]
[1763518215995,0.002,3122.5,3122.4,0.99665222]
[1763518216200,0.002,3122.5,3122.4,0.50305222]
[1763518216426,0.0546,3122.5,3122.4,0.50305222]
[1763518216810,0.55755934,3122.5,3122.4,0.50305222]